fUST/lending_fUST_20241109
["ID","MTS","AMOUNT","RATE_DAILY","PERIOD"]
[341714187,1731121847382,-500.0,0.00021917,2]
[341714188,1731121847391,-500.0,0.00021917,2]
[341714189,1731121847400,-244.83,0.00022191,2]
[341714190,1731121847409,-503.69197431,0.00022191,2]
[341714191,1731121847418,-519.72085336,0.00022191,2]
[341714192,1731121847427,-152.55,0.00022191,2]
[341714193,1731121847436,-500.0,0.00022191,2]
[341714194,1731121847445,-500.0,0.00022191,2]
[341714195,1731121847454,-500.0,0.00022191,2]
[341714196,1731121847463,-500.0,0.00022191,2]
[341714197,1731121847472,-500.0,0.00022191,2]
[341714198,1731121847480,-173.49636567,0.00022191,2]
[341714199,1731121847489,-500.0,0.00022465,2]
[341714200,1731121847499,-500.0,0.00022465,2]
[341714201,1731121847509,-281.03,0.00022465,2]
[341714202,1731121847518,-207.48,0.00022465,2]
[341714203,1731121847527,-500.0,0.00022739,2]
[341714204,1731121847537,-500.0,0.00022739,2]
[341714205,1731121847546,-500.0,0.00023013,2]
[341714206,1731121847556,-243.26548134,0.00023013,2]
[341714207,1731121847565,-270.90932424,0.00023217,2]
[341714208,1731121847574,-500.0,0.00023287,2]
[341714209,1731121847583,-500.0,0.00023561,2]
[341714210,1731121847592,-420.0,0.00023817,2]
[341714211,1731121847601,-247.067,0.00023834,2]
[341714212,1731121847610,-500.0,0.00023835,2]
[341714213,1731121847619,-500.0,0.00024109,2]
[341714214,1731121847628,-158.762389,0.00024224,2]
[341714215,1731121847638,-500.0,0.00024383,2]
[341714216,1731121847647,-270.90932424,0.00024616,2]
[341714217,1731121847656,-500.0,0.00024657,2]
[341714218,1731121847665,-500.0,0.00024931,2]
[341714219,1731121847675,-500.0,0.00025205,2]
[341714220,1731121847684,-500.0,0.00025479,2]
[341714221,1731121847695,-500.0,0.00025753,2]
[341714222,1731121847704,-587.0,0.00025884,2]
[341714223,1731121847714,-270.90932424,0.00026016,2]
[341714224,1731121847724,-222.32457217,0.00026027,2]
[341714225,1731121847734,-804.36723093,0.00026999,7]
[341714226,1731121847743,-500.0,0.00027311,2]
[341714227,1731121847753,-150.167,0.00027312,2]
[341714228,1731121847762,-150.283,0.00027312,2]
[341714229,1731121847771,-150.0,0.00027312,2]
[341714230,1731121847781,-1144.852,0.00027312,2]
[341714231,1731121847790,-532.079,0.00027312,2]
[341714232,1731121847799,-2393.0,0.00027312,2]
[341714233,1731121847809,-270.90932424,0.00027415,2]
[341714234,1731121847818,-159.617,0.000278,30]
[341714235,1731121847827,-155.34585439,0.00027999,2]
[341714236,1731121847838,-3191.99141367,0.00027999,2]
[341714237,1731121847849,-515.35141187,0.00028088,7]
[341714238,1731121847859,-515.0,0.0002813,2]
[341714239,1731121847868,-270.90932424,0.00028815,2]
[341714240,1731121847879,-1792.62575144,0.00028827,30]
[341714243,1731121906642,694.44444444,0.00020843,2]
[341714245,1731122206588,158.762389,0.00013973,2]
[341714246,1731122217719,694.44444444,0.00020843,2]
[341714247,1731122528700,694.44444444,0.00020843,2]
[341714256,1731122839477,694.44444444,0.00020843,2]
[341714274,1731122911178,158.762389,0.00013973,2]
[341714276,1731122925784,1368.01,0.00031711,30]
[341714278,1731122981065,820.18,0.00031711,30]
[341714279,1731122981515,1139.379,0.00021,10]
[341714400,1731123038886,-501.60871891,0.00021273,2]
[341714541,1731123046733,-192.83572553,0.00021273,2]
[341714544,1731123046743,-514.33567953,0.00021917,2]
[341714546,1731123046752,-531.58835119,0.00021917,2]
[341714548,1731123046765,-501.45278256,0.00021917,2]
[341714550,1731123046774,-512.43566214,0.00021917,2]
[341714552,1731123046784,-500.0,0.00021917,2]
[341714554,1731123046794,-232.65125,0.00022143,2]
[341714556,1731123046803,-529.0,0.00027194,2]
[341714558,1731123046812,-1132.0,0.00027194,2]
[341714560,1731123046822,-501.6087189,0.0002722,2]
[341714562,1731123046832,-158.762389,0.00027641,2]
[341714564,1731123046842,-150.0,0.000288,2]
[341714566,1731123046851,-2557.14473749,0.00028827,30]
[341714567,1731123046860,-977.17204302,0.00029,30]
[341714569,1731123046870,-508.705,0.00029,120]
[341714571,1731123046880,-159.593,0.0002908,30]
[341714573,1731123046889,-180.60621616,0.0002929,2]
[341714575,1731123046899,-164.21606431,0.00029386,2]
[341714577,1731123046908,-234.33982306,0.00029389,2]
[341714579,1731123046917,-500.0,0.00029389,2]
[341714581,1731123046927,-500.0,0.00029389,2]
[341714583,1731123046936,-391.88806214,0.00029389,2]
[341714584,1731123046945,-500.0,0.00029389,2]
[341714586,1731123046955,-410.71189565,0.00029389,2]
[341714588,1731123046963,-500.0,0.00029389,2]
[341714590,1731123046972,-252.68431247,0.00029389,2]
[341718963,1731123150595,694.44444444,0.00020843,2]
[341718966,1731123461854,694.44444444,0.00020843,2]
[341718967,1731123592094,158.762389,0.00013973,2]
[341718969,1731123614503,808.81,0.00031714,30]
[341718970,1731123772333,694.44444444,0.00020843,2]
[341718991,1731124082823,694.44444444,0.00020843,2]
[341719073,1731124239190,-185.30025,0.00022447,2]
[341719075,1731124239199,-694.44444444,0.00025911,2]
[341719077,1731124239209,-783.14516759,0.00029096,2]
[341719079,1731124239218,-348.75679841,0.00029279,2]
[341719081,1731124239227,-164.21606429,0.00029298,2]
[341719083,1731124239237,-11136.65975483,0.000293,2]
[341719085,1731124239246,-4626.46503357,0.00029378,2]
[341719087,1731124239256,-4227.04519994,0.00029378,2]
[341719089,1731124239265,-304.58041904,0.00029379,2]
[341719091,1731124239276,-537.13,0.00029379,3]
[341719092,1731124239286,-268.56,0.00029379,3]
[341719094,1731124239295,-500.0,0.00029379,2]
[341719096,1731124239304,-500.0,0.00029379,2]
[341719098,1731124239314,-500.0,0.00029379,2]
[341719099,1731124239323,-500.0,0.00029379,2]
[341719100,1731124239332,-465.57875636,0.00029379,2]
[341719101,1731124239341,-500.0,0.00029379,2]
[341719102,1731124239351,-500.0,0.00029379,2]
[341719103,1731124239360,-500.0,0.00029379,2]
[341719104,1731124239369,-500.0,0.00029379,2]
[341719105,1731124239378,-500.0,0.00029379,2]
[341719106,1731124239387,-520.48050949,0.00029379,2]
[341719107,1731124239396,-500.0,0.00029379,2]
[341719108,1731124239406,-509.58153484,0.00029379,2]
[341719109,1731124239415,-500.0,0.00029379,2]
[341719110,1731124239424,-500.0,0.00029379,2]
[341719111,1731124239433,-500.0,0.00029379,2]
[341719112,1731124239442,-500.0,0.00029379,2]
[341719113,1731124239451,-500.0,0.00029379,2]
[341719114,1731124239460,-500.00000002,0.00029379,2]
[341719116,1731124239470,-500.0,0.00029379,2]
[341719117,1731124239479,-500.0,0.00029379,2]
[341719118,1731124239488,-500.0,0.00029379,2]
[341719119,1731124239497,-177.43934993,0.00029379,2]
[341719120,1731124239506,-500.0,0.00029379,2]
[341719121,1731124239515,-500.0,0.00029379,2]
[341719122,1731124239525,-503.17014421,0.00029379,2]
[341719123,1731124239534,-500.0,0.00029379,2]
[341719124,1731124239543,-500.0,0.00029379,2]
[341719125,1731124239552,-509.89858709,0.00029379,2]
[341719126,1731124239561,-507.86238103,0.00029379,2]
[341719127,1731124239570,-509.59377723,0.00029379,2]
[341719128,1731124239579,-493.39980566,0.00029379,2]
[341719129,1731124239589,-500.0,0.00029379,2]
[341719130,1731124239598,-500.0,0.00029379,2]
[341719131,1731124239607,-500.0,0.00029379,2]
[341719132,1731124239617,-500.0,0.00029379,2]
[341719133,1731124239627,-502.38191226,0.00029379,2]
[341719134,1731124239637,-507.42328756,0.00029379,2]
[341719135,1731124239646,-500.0,0.00029379,2]
[341719136,1731124239656,-500.0,0.00029379,2]
[341719137,1731124239665,-500.0,0.00029379,2]
[341719138,1731124239675,-500.0,0.00029379,2]
[341719139,1731124239684,-500.0,0.00029379,2]
[341719140,1731124239694,-500.0,0.00029379,2]
[341719141,1731124239703,-504.3344611,0.00029379,2]
[341719142,1731124239714,-155.38467125,0.00029379,7]
[341719143,1731124239724,-500.0,0.00029379,2]
[341719144,1731124239733,-151.0,0.00029379,7]
[341719145,1731124239821,-151.0,0.00029379,7]
[341719146,1731124239854,-151.0,0.00029379,7]
[341719147,1731124239867,-151.0,0.00029379,7]
[341719148,1731124239877,-151.0,0.00029379,7]
[341719149,1731124239889,-151.0,0.00029379,7]
[341719150,1731124239899,-151.0,0.00029379,7]
[341719151,1731124239910,-193.584414,0.00029379,7]
[341719152,1731124239921,-151.0,0.00029379,7]
[341719153,1731124239932,-151.0,0.00029379,7]
[341719154,1731124239944,-151.0,0.00029379,7]
[341719155,1731124239954,-151.0,0.00029379,7]
[341719156,1731124239964,-151.0,0.00029379,7]
[341719157,1731124239974,-151.0,0.00029379,7]
[341719158,1731124239983,-151.0,0.00029379,7]
[341719159,1731124239993,-151.0,0.00029379,7]
[341719160,1731124240003,-151.0,0.00029379,7]
[341719161,1731124240012,-151.0,0.00029379,7]
[341719162,1731124240022,-151.0,0.0002938,7]
[341719163,1731124240034,-151.0,0.0002938,7]
[341719164,1731124240043,-4578.49,0.0002938,10]
[341719165,1731124240052,-805.73,0.0002938,3]
[341719166,1731124240063,-7840.02,0.0002938,10]
[341719167,1731124240073,-6533.35,0.0002938,10]
[341719168,1731124240082,-151.0,0.0002938,7]
[341719169,1731124240091,-151.0,0.0002938,7]
[341719170,1731124240101,-151.0,0.0002938,7]
[341719171,1731124240110,-151.0,0.0002938,7]
[341719172,1731124240121,-214.238672,0.0002938,7]
[341719173,1731124240131,-500.0,0.00029388,2]
[341719174,1731124240142,-500.0,0.00029388,2]
[341719175,1731124240151,-500.0,0.00029388,2]
[341719176,1731124240161,-500.0,0.00029388,2]
[341719177,1731124240171,-500.0,0.00029388,2]
[341719178,1731124240180,-500.0,0.00029388,2]
[341719179,1731124240190,-500.0,0.00029389,2]
[341719180,1731124240199,-247.31568753,0.00029389,2]
[341719181,1731124240208,-545.08250375,0.00029389,2]
[341719182,1731124240218,-500.0,0.00029389,2]
[341719183,1731124240227,-505.86903231,0.00029389,2]
[341719184,1731124240236,-500.0,0.00029389,2]
[341719185,1731124240245,-500.0,0.00029389,2]
[341719186,1731124240254,-423.51064605,0.00029389,2]
[341719187,1731124240264,-500.0,0.00029389,2]
[341719188,1731124240273,-500.0,0.00029389,2]
[341719189,1731124240283,-500.0,0.00029389,2]
[341719190,1731124240292,-500.0,0.00029389,2]
[341719191,1731124240302,-500.0,0.00029389,2]
[341719192,1731124240311,-500.0,0.00029389,2]
[341719193,1731124240320,-500.0,0.00029389,2]
[341719194,1731124240329,-500.0,0.00029389,2]
[341719195,1731124240338,-522.05851093,0.00029389,2]
[341719196,1731124240347,-500.0,0.00029389,2]
[341719197,1731124240356,-585.37937639,0.00029389,2]
[341719198,1731124240366,-500.0,0.00029389,2]
[341719199,1731124240375,-500.0,0.00029389,2]
[341719200,1731124240384,-500.0,0.00029389,2]
[341719201,1731124240393,-301.402543,0.00029389,2]
[341719202,1731124240402,-500.0,0.00029389,2]
[341719203,1731124240412,-484.08293139,0.00029389,2]
[341719204,1731124240421,-509.98263369,0.00029389,2]
[341719205,1731124240432,-507.47215594,0.00029389,2]
[341719206,1731124240441,-500.0,0.00029389,2]
[341719207,1731124240450,-272.95953543,0.00029389,2]
[341719208,1731124240459,-501.00791894,0.00029389,2]
[341719209,1731124240468,-483.95111198,0.00029389,2]
[341719210,1731124240477,-503.78878868,0.00029389,2]
[341719211,1731124240488,-505.77255761,0.00029389,2]
[341719212,1731124240497,-641.95030625,0.00029389,2]
[341719213,1731124240506,-502.83363525,0.00029389,2]
[341719214,1731124240515,-500.0,0.00029389,2]
[341719215,1731124240524,-515.03257178,0.00029389,2]
[341719216,1731124240533,-500.0,0.00029389,2]
[341719217,1731124240542,-505.29716787,0.00029389,2]
[341719218,1731124240551,-500.0,0.00029389,2]
[341719219,1731124240560,-500.0,0.00029389,2]
[341719220,1731124240570,-124.35916025,0.00029389,2]
[341719223,1731124240679,-378.14304767,0.00029389,2]
[341719224,1731124240688,-188.16127563,0.00029389,2]
[341719229,1731124240883,-5444.46,0.00029379,10]
[341719230,1731124240893,-327.72102337,0.00029389,2]
[341719232,1731124240903,-503.12928454,0.00029389,2]
[341719233,1731124240913,-500.89538865,0.00029389,2]
[341719234,1731124240926,-500.0,0.00029389,2]
[341719235,1731124240936,-503.11459292,0.00029389,2]
[341719236,1731124240948,-551.56784575,0.00029389,2]
[341719237,1731124240959,-101.14171594,0.00029389,2]
[341719320,1731124352150,158.762389,0.00013973,2]
[341719322,1731124393855,694.44444444,0.00020843,2]
[341719340,1731124704697,694.44444444,0.00020843,2]
[341719342,1731124799362,1917.51865133,0.00025,120]
[341719344,1731125015055,694.44444444,0.00020843,2]
[341719345,1731125030238,158.762389,0.00013973,2]
[341719347,1731125116155,1283.9567921,0.00031713,120]
[341719375,1731125326275,694.44444444,0.00020843,2]
[341719484,1731125442909,-694.44444444,0.00026566,2]
[341719485,1731125442921,-2336.39927469,0.00027996,2]
[341719487,1731125442962,-2471.84539558,0.00027996,2]
[341719488,1731125442974,-3101.80630013,0.00027996,2]
[341719489,1731125442983,-164.21606429,0.000293,2]
[341719490,1731125442992,-500.0,0.00029378,2]
[341719491,1731125443001,-500.0,0.00029379,2]
[341719492,1731125443010,-517.92282039,0.00029379,2]
[341719493,1731125443019,-500.0,0.00029379,2]
[341719494,1731125443029,-402.19627732,0.00029379,2]
[341719495,1731125443039,-509.5358595,0.00029379,2]
[341719496,1731125443048,-506.59278513,0.00029379,2]
[341719497,1731125443058,-164.24682734,0.00029379,2]
[341719498,1731125443069,-348.56498043,0.00029379,2]
[341719499,1731125443079,-383.15253863,0.00029389,2]
[341719500,1731125443089,-500.0,0.00029389,2]
[341719501,1731125443099,-500.0,0.00029389,2]
[341719502,1731125443109,-500.0,0.00029389,2]
[341719503,1731125443120,-529.37999498,0.00029389,2]
[341719504,1731125443130,-500.0,0.00029389,2]
[341719505,1731125443141,-6240.08151842,0.0002939,2]
[341719519,1731125446083,-467.75527375,0.0002939,2]
[341719520,1731125446096,-15301.83262591,0.0002939,2]
[341719521,1731125446107,-268.56,0.0002939,3]
[341719522,1731125446118,-2547.48430684,0.0002939,10]
[341719523,1731125637114,694.44444444,0.00020843,2]
[341719524,1731125779345,158.762389,0.00013973,2]
[341719525,1731125948784,694.44444444,0.00020843,2]
[341719526,1731126220989,11000.0,0.00031713,120]
[341719527,1731126259749,694.44444444,0.00020843,2]
[341719602,1731126519209,158.762389,0.00013973,2]
[341719608,1731126570408,694.44444444,0.00020843,2]
[341719667,1731126632118,-189.93,0.00021767,2]
[341719669,1731126632128,-3626.3392631,0.00026843,2]
[341719671,1731126632137,-300.0,0.00026977,2]
[341719673,1731126632146,-300.0,0.00026977,2]
[341719675,1731126632155,-3251.9678526,0.00026978,2]
[341719677,1731126632165,-694.44444444,0.00026978,2]
[341719679,1731126632174,-1365.71125627,0.00027311,2]
[341719758,1731126639915,-694.44444444,0.00025751,2]
[341719759,1731126639925,-1027.28874373,0.00027311,2]
[341719760,1731126639935,-1140.0,0.00027311,2]
[341719761,1731126639944,-157.775,0.0002813,30]
[341719762,1731126639954,-7231.338984,0.0002846,2]
[341719763,1731126639963,-7231.338984,0.00028587,2]
[341719764,1731126639974,-500.0,0.00028797,2]
[341719765,1731126639985,-672.68438145,0.00028904,2]
[341719766,1731126639994,-7231.338984,0.00028998,2]
[341719767,1731126640004,-210.642626,0.00029004,7]
[341719768,1731126640013,-151.0,0.00029141,7]
[341719769,1731126640023,-7231.3389841,0.00029254,2]
[341719770,1731126640032,-151.0,0.00029287,7]
[341719771,1731126640041,-203.05361269,0.00029287,2]
[341719772,1731126640050,-672.68438142,0.00029291,2]
[341719773,1731126640060,-167.92469007,0.000293,2]
[341719774,1731126640069,-196.89997063,0.00029389,2]
[341719775,1731126640079,-256.88360816,0.00029389,2]
[341719776,1731126640088,-278.299778,0.00029389,7]
[341719777,1731126640097,-151.0,0.0002939,2]
[341719778,1731126640107,-153.5468261,0.0002939,3]
[341719779,1731126640117,-151.0,0.0002939,7]
[341719780,1731126640127,-223.8,0.0002939,3]
[341719781,1731126640136,-4112.47,0.0002939,10]
[341719782,1731126640145,-671.42,0.0002939,3]
[341719783,1731126640155,-2798.91378001,0.0002939,10]
[341719800,1731126646041,-268.0,0.00027311,2]
[341719872,1731126883881,694.44444444,0.00020843,2]
[341719952,1731127173293,158.762389,0.00013973,2]
[341719954,1731127195453,694.44444444,0.00020843,2]
[341719956,1731127507535,694.44444444,0.00020843,2]
[341719978,1731127818143,694.44444444,0.00020843,2]
[341720071,1731127838455,-300.0,0.00027653,2]
[341720072,1731127838465,-150.0,0.00027654,2]
[341720073,1731127838475,-94.19082374,0.00027654,2]
[341720077,1731127840192,-1037.80917626,0.00027654,2]
[341720078,1731127840202,-529.0,0.00027654,2]
[341720079,1731127840211,-82.94676303,0.00027654,2]
[341720080,1731127840223,-2308.05323697,0.00027654,2]
[341720081,1731127840242,-150.627,0.00027654,2]
[341720082,1731127840255,-694.44444444,0.00027654,2]
[341720083,1731127840265,-500.55703884,0.00028498,2]
[341720084,1731127840275,-500.0,0.00028586,2]
[341720085,1731127840285,-1107.11,0.00028586,2]
[341720086,1731127840295,-500.0,0.00028586,2]
[341720087,1731127840305,-500.0,0.00028586,2]
[341720088,1731127840315,-500.0,0.00028586,2]
[341720089,1731127840325,-500.0,0.00028586,2]
[341720090,1731127840335,-218.23161597,0.00028586,2]
[341720091,1731127840344,-500.0,0.00028586,2]
[341720092,1731127840354,-500.0,0.00028586,2]
[341720093,1731127840363,-1536.16637461,0.00028771,30]
[341720094,1731127840373,-500.0,0.0002886,2]
[341720095,1731127840383,-1107.11,0.0002886,2]
[341720096,1731127840392,-500.0,0.00029134,2]
[341720097,1731127840402,-1107.11,0.00029134,2]
[341720098,1731127840412,-500.0,0.00029286,2]
[341720099,1731127840421,-642.665,0.00029286,2]
[341720100,1731127840431,-504.5132861,0.000293,2]
[341720101,1731127840443,-150.01,0.00029389,2]
[341720102,1731127840453,-556.49782,0.0002939,120]
[341720103,1731127840462,-500.0,0.00029398,2]
[341720104,1731127840472,-500.0,0.00029399,2]
[341720105,1731127840482,-500.0,0.00029399,2]
[341720106,1731127840492,-500.0,0.00029399,2]
[341720107,1731127840501,-500.0,0.00029399,2]
[341720108,1731127840511,-434.86850874,0.00029399,2]
[341720109,1731127840521,-203.05361269,0.000294,2]
[341720110,1731127840530,-30983.07159176,0.000294,2]
[341720111,1731127840540,-167.92469007,0.000294,2]
[341720112,1731127840550,-500.0,0.00029408,2]
[341720113,1731127840560,-1107.11,0.00029408,2]
[341720114,1731127840569,-411.71855774,0.0002945,2]
[341720115,1731127840579,-500.0,0.00029473,5]
[341720116,1731127840589,-500.0,0.00029473,5]
[341720117,1731127840599,-2313.23251678,0.0002949,2]
[341720118,1731127840609,-2113.52259997,0.0002949,2]
[341720119,1731127840618,-157.28,0.0002949,3]
[341720120,1731127840628,-1861.49,0.0002949,10]
[341720121,1731127840638,-471.84,0.0002949,3]
[341720122,1731127840647,-3549.74,0.0002949,10]
[341720123,1731127840656,-2958.12,0.0002949,10]
[341720124,1731127840670,-2465.1,0.0002949,10]
[341720125,1731127840680,-500.0,0.00029499,2]
[341720126,1731127840690,-438.25151361,0.00029499,2]
[341720127,1731127840699,-422.29504422,0.00029499,2]
[341720128,1731127840709,-500.0,0.00029499,2]
[341720129,1731127840719,-500.0,0.00029499,2]
[341720130,1731127840729,-155.36947862,0.00029499,2]
[341720131,1731127840738,-152.69167126,0.00029499,2]
[341720132,1731127840747,-500.0,0.00029499,2]
[341720133,1731127840756,-500.0,0.00029499,2]
[341720134,1731127840765,-500.0,0.00029499,2]
[341720135,1731127840775,-457.63371495,0.00029499,2]
[341720136,1731127840785,-600.0,0.00029499,2]
[341720137,1731127840796,-19171.01928886,0.000295,7]
[341720140,1731127844039,-833.4348201,0.0002949,10]
[341720141,1731127844096,-1220.8151799,0.0002949,10]
[341720142,1731127844106,-7521.20712696,0.000295,7]
[341720163,1731128041605,158.762389,0.00013973,2]
[341720165,1731128129730,694.44444444,0.00020843,2]
[341720166,1731128240752,446.8,0.00027,60]
[341720169,1731128276539,1000.0,0.00027,60]
[341720170,1731128440530,694.44444444,0.00020843,2]
[341720171,1731128652282,1594.25086997,0.00027,60]
[341720172,1731128713088,158.762389,0.00013973,2]
[341720177,1731128750922,694.44444444,0.00020843,2]
[341720206,1731129032428,-694.44444444,0.00022207,2]
[341720208,1731129032439,-167.0,0.00023,2]
[341720210,1731129032449,-167.0,0.00024164,2]
[341720212,1731129032459,-150.0,0.00027664,2]
[341720214,1731129032469,-261.0,0.00027664,2]
[341720216,1731129032479,-533.04193405,0.00028586,2]
[341720218,1731129032488,-874.21132951,0.00028771,30]
[341720220,1731129032498,-158.414,0.0002908,7]
[341720222,1731129032507,-4009.8658213,0.00029123,2]
[341720224,1731129032517,-393.064842,0.00029123,2]
[341720226,1731129032529,-230.1576287,0.00029123,2]
[341720348,1731129043509,-182.5379663,0.00029123,2]
[341720349,1731129043519,-167.92469007,0.00029398,2]
[341720350,1731129043529,-320.43867357,0.00029399,2]
[341720429,1731129063368,694.44444444,0.00020843,2]
[341720430,1731129374505,694.44444444,0.00020843,2]
[341720434,1731129632621,500.0,0.00027,60]
[341720437,1731129646254,650.0,0.00027,60]
[341720439,1731129688091,694.44444444,0.00020843,2]
[341720448,1731129999659,694.44444444,0.00020843,2]
[341720473,1731130116594,674.59924788,0.0002,2]
[341720514,1731130232482,-694.44444444,0.00023703,2]
[341720515,1731130232492,-194.370976,0.00027,30]
[341720517,1731130232502,-734.77365468,0.00027778,2]
[341720596,1731130238495,-266.47535616,0.00027778,2]
[341720600,1731130238609,-2267.72901441,0.00027778,2]
[341720694,1731130243585,-2206.39041035,0.00027778,2]
[341720696,1731130243595,-300.0,0.00029121,2]
[341720698,1731130243604,-190.831369,0.00029123,2]
[341720699,1731130243614,-1263.265866,0.00029123,2]
[341720701,1731130243623,-215.510622,0.00029123,2]
[341720703,1731130243633,-441.44912532,0.00029372,2]
[341720704,1731130243643,-1156.61625839,0.00029399,2]
[341720705,1731130243652,-1056.76129998,0.00029399,2]
[341720706,1731130243662,-500.0,0.00029399,2]
[341720707,1731130243671,-922.59,0.00029399,2]
[341720708,1731130243681,-500.0,0.00029399,2]
[341720709,1731130243690,-500.0,0.00029399,2]
[341720710,1731130243700,-405.90978424,0.00029399,2]
[341720712,1731130243709,-21.33405734,0.000294,2]
[341720719,1731130311621,694.44444444,0.00020843,2]
[341720723,1731130623379,694.44444444,0.00020843,2]
[341720728,1731130935020,694.44444444,0.00020843,2]
[341720734,1731131245458,694.44444444,0.00020843,2]
[341720790,1731131432655,-284.895,0.0002099,2]
[341720792,1731131432666,-31.65596096,0.000252,2]
[341720794,1731131432677,-539.23331986,0.000252,2]
[341720871,1731131438770,-694.44444444,0.00022586,2]
[341720872,1731131438780,-2004.98265824,0.000252,2]
[341720873,1731131438790,-231.0,0.00025857,2]
[341720874,1731131438799,-300.0,0.00025857,2]
[341720875,1731131438809,-24880.0,0.00025858,2]
[341720876,1731131438818,-500.0,0.00027506,2]
[341720877,1731131438827,-500.0,0.00027506,2]
[341720878,1731131438836,-884.15,0.00027506,2]
[341720879,1731131438845,-321.86,0.00027506,2]
[341720880,1731131438854,-500.0,0.00027506,2]
[341720881,1731131438863,-500.0,0.00027506,2]
[341720882,1731131438872,-564.71593319,0.00027506,2]
[341720883,1731131438881,-512.45417014,0.00027506,2]
[341720884,1731131438891,-500.0,0.00027506,2]
[341720885,1731131438900,-578.3081292,0.00027506,2]
[341720886,1731131438910,-2.48016178,0.00027506,2]
[341720887,1731131438921,-302.61,0.00027506,2]
[341720903,1731131440583,-223.29048821,0.00027506,2]
[341720904,1731131440596,-555.27303167,0.0002768,2]
[341720905,1731131440606,-500.0,0.0002778,2]
[341720906,1731131440616,-268.22248066,0.0002778,2]
[341720907,1731131440630,-239.38932989,0.0002778,2]
[341720908,1731131440641,-884.15,0.0002778,2]
[341720909,1731131440651,-500.0,0.0002778,2]
[341720910,1731131440662,-465.01043828,0.00028054,2]
[341720911,1731131440675,-34.98956172,0.00028054,2]
[341720912,1731131440685,-884.15,0.00028054,2]
[341720913,1731131440696,-500.0,0.00028054,2]
[341720914,1731131440708,-374.154,0.0002819,2]
[341720915,1731131440719,-150.427,0.0002819,2]
[341720916,1731131440730,-555.27303164,0.00028241,2]
[341720917,1731131440741,-181.71955536,0.00028328,2]
[341720918,1731131440751,-500.0,0.00028328,2]
[341720919,1731131440761,-884.15,0.00028328,2]
[341720920,1731131440770,-500.0,0.00028328,2]
[341720921,1731131440780,-500.0,0.00028602,2]
[341720922,1731131440790,-884.15,0.00028602,2]
[341720923,1731131440801,-500.0,0.00028602,2]
[341720924,1731131440811,-866.8337616,0.000287,2]
[341720945,1731131446789,-584.17,0.00027506,2]
[341720946,1731131446801,-500.0,0.00027506,2]
[341720947,1731131446811,-504.25383768,0.00027506,2]
[341720948,1731131446821,-508.29986673,0.0002778,2]
[341720949,1731131446830,-154.15670647,0.000287,2]
[341720950,1731131446840,-555.27303164,0.00028803,2]
[341720951,1731131446850,-500.0,0.00028876,2]
[341720952,1731131446859,-884.15,0.00028876,2]
[341720953,1731131446868,-500.0,0.00028876,2]
[341720954,1731131446878,-966.45808068,0.00029102,2]
[341720955,1731131446887,-500.0,0.0002915,2]
[341720956,1731131446897,-884.15,0.0002915,2]
[341720957,1731131446906,-500.0,0.0002915,2]
[341720958,1731131446915,-122.92329844,0.0002915,7]
[341720959,1731131446927,-28.07670156,0.0002915,7]
[341720960,1731131446936,-27104.12554249,0.0002917,2]
[341720965,1731131531022,167.216857,0.00013973,2]
[341720966,1731131531890,219.492,0.00020779,2]
[341720967,1731131557815,694.44444444,0.00020843,2]